bitfinex/quotes_SOLUSD_20250710
["timestamp","ask_amount","ask_price","bid_price","bid_amount"]
[1752126201397,22.51295007,157.32,157.31,1.893315]
[1752126203293,28.86942095,157.32,157.31,1.893315]
[1752126210418,28.86942095,157.32,157.31,0.249315]
[1752126217527,28.86942095,157.32,157.29,12.0]
[1752126217528,18.79181043,157.31,157.29,12.0]
[1752126217725,3.86330121,157.3,157.29,12.0]
[1752126217926,10.59384519,157.3,157.29,12.0]
[1752126218429,3.86330121,157.3,157.29,12.0]
[1752126218834,10.22058029,157.3,157.29,12.0]
[1752126223937,42.18058029,157.3,157.29,12.0]
[1752126224727,42.18058029,157.3,157.29,6.0]
[1752126224929,67.5225912,157.3,157.29,6.0]
[1752126225109,18.79181043,157.29,157.28,0.2]
[1752126225312,37.39750863,157.29,157.28,0.2]
[1752126225927,54.47295007,157.29,157.28,0.2]
[1752126226440,54.47295007,157.29,157.28,1e-08]
[1752126226616,60.83063333,157.29,157.28,1e-08]
[1752126229228,75.71519189,157.29,157.27,1e-08]
[1752126229535,37.39750863,157.28,157.27,1e-08]
[1752126231344,43.75559611,157.28,157.27,1e-08]
[1752126232612,25.14989791,157.28,157.27,1e-08]
[1752126232808,43.75559611,157.28,157.27,1e-08]
[1752126234655,50.39529683,157.28,157.27,1e-08]
[1752126236344,50.39529683,157.28,157.2,1.6338]
[1752126236345,18.79181043,157.24,157.2,1.6338]
[1752126236549,18.64964886,157.2,157.19,6.2801]
[1752126236749,22.3707885,157.2,157.19,6.2801]
[1752126237063,18.64964886,157.2,157.19,6.2801]
[1752126237430,25.01097201,157.2,157.19,6.2801]
[1752126238519,50.79181043,157.23,157.19,10.00123964]
[1752126238749,50.79181043,157.23,157.2,3.72113964]
[1752126238952,50.79181043,157.23,157.19,6.2801]
[1752126238953,60.87305946,157.23,157.19,10.00123964]
[1752126239455,0.14216157,157.21,157.19,10.00123964]
[1752126239952,6.36132315,157.2,157.19,6.2801]
[1752126240123,6.36132315,157.2,157.19,10.00123964]
[1752126240648,6.50325269,157.21,157.19,10.00123964]
[1752126246540,0.14216157,157.21,157.19,10.00123964]
[1752126247240,6.50309075,157.21,157.19,10.00123964]
[1752126248630,6.50309075,157.21,157.19,10.06123964]
[1752126249953,6.50309075,157.21,157.19,6.3401]
[1752126250147,6.50309075,157.21,157.19,10.06123964]
[1752126254540,6.50309075,157.21,157.19,3.78113964]
[1752126257940,6.36051392,157.22,157.2,3.72113964]
[1752126260070,6.36051392,157.22,157.19,3.78113964]
[1752126260785,6.36051392,157.22,157.2,3.72113964]
[1752126262958,0.14216157,157.25,157.21,3.72113964]
[1752126263261,0.14216157,157.25,157.23,3.72113964]
[1752126264880,25.15151533,157.24,157.23,3.72113964]
[1752126268577,18.79181043,157.25,157.23,3.72113964]
[1752126268875,25.00854495,157.26,157.24,3.72113964]
[1752126269052,25.00854495,157.26,157.2,29.04167812]
[1752126269053,25.15070652,157.26,157.25,3.72113964]
[1752126275768,25.15070652,157.26,157.2,7.7959]
[1752126275769,6.35889609,157.26,157.2,7.7959]
[1752126275997,6.35889609,157.26,157.2,14.15714256]
[1752126276162,6.35889609,157.26,157.2,7.7959]
[1752126276587,6.35889609,157.26,157.23,3.72113964]
[1752126277985,13.04216926,157.26,157.23,3.72113964]
[1752126278979,16.7633089,157.26,157.22,3.72113964]
[1752126279183,10.08003573,157.26,157.22,3.72113964]
[1752126279680,6.35889609,157.26,157.22,3.72113964]
[1752126280078,10.08003573,157.26,157.22,3.72113964]
[1752126283787,10.08003573,157.26,157.23,3.72113964]
[1752126284190,18.79181043,157.26,157.23,3.72113964]
[1752126284393,22.51295007,157.26,157.23,3.72113964]
[1752126284591,22.51295007,157.26,157.22,3.72113964]
[1752126286280,6.35930047,157.25,157.22,3.72113964]
[1752126286979,6.35930047,157.25,157.23,3.72113964]
[1752126287693,7.08324667,157.24,157.23,3.72113964]
[1752126288572,13.44295157,157.24,157.23,3.72113964]
[1752126288773,13.44295157,157.24,157.2,5.51703964]
[1752126288999,6.3597049,157.24,157.23,3.72113964]
[1752126289197,13.44334273,157.24,157.23,3.72113964]
[1752126293490,13.44334273,157.24,157.2,5.51703964]
[1752126293698,7.08363783,157.23,157.2,5.51703964]
[1752126293988,7.08363783,157.22,157.2,5.51703964]
[1752126294193,7.08363783,157.21,157.2,5.51703964]
[1752126294995,7.08363783,157.21,157.2,9.23817928]
[1752126301096,7.08363783,157.21,157.2,41.21817928]
[1752126305797,7.08363783,157.21,157.2,37.49703964]
[1752126306093,7.08363783,157.21,157.2,41.21817928]
[1752126308097,7.08363783,157.21,157.2,35.70113964]
[1752126309593,13.44458836,157.21,157.19,0.06]
[1752126309894,7.08363783,157.2,157.19,0.06]
[1752126310275,13.44496098,157.2,157.19,0.06]
[1752126312587,7.08363783,157.2,157.19,3.78113964]
[1752126313004,7.08363783,157.2,157.19,3.72113964]
[1752126313607,7.08363783,157.2,157.19,3.78113964]
[1752126315505,13.44496098,157.2,157.19,0.06]
[1752126319728,13.44496098,157.2,157.19,3.78113964]
[1752126331818,13.44496098,157.2,157.19,0.06]
[1752126332117,13.44496098,157.2,157.19,3.78113964]
[1752126332417,13.44496098,157.2,157.19,0.06]
[1752126334717,13.44496098,157.2,157.18,3.72113964]
[1752126335028,6.39091851,157.21,157.18,3.72113964]
[1752126335318,7.08418295,157.2,157.19,0.06]
[1752126335523,7.11418295,157.2,157.19,0.06]
[1752126335729,7.11418295,157.2,157.19,3.78113964]
[1752126335920,0.03,157.2,157.19,3.78113964]
[1752126340415,7.11703953,157.2,157.19,3.78113964]
[1752126340616,0.03,157.2,157.19,3.78113964]
[1752126344225,7.12132317,157.2,157.19,3.78113964]
[1752126347733,0.03,157.2,157.19,3.78113964]
[1752126355331,0.03,157.2,157.19,0.06]
[1752126355631,0.03,157.2,157.19,3.78113964]
[1752126364455,0.03,157.2,157.19,0.06]
[1752126364638,0.03,157.2,157.19,3.78113964]
[1752126365730,0.03,157.2,157.19,0.06]
[1752126365949,0.03,157.2,157.19,3.78113964]
[1752126373941,0.03,157.2,157.19,0.06]
[1752126374148,0.03,157.2,157.19,3.78113964]
[1752126375269,0.03,157.2,157.19,0.06]
[1752126375454,0.03,157.2,157.19,3.78113964]
[1752126376765,0.03,157.2,157.19,0.06]
[1752126377140,3.75113964,157.2,157.19,0.06]
[1752126377849,10.24132444,157.2,157.19,0.06]
[1752126378050,16.60264759,157.2,157.19,0.06]
[1752126379748,12.88150795,157.2,157.19,0.06]
[1752126382874,16.60264759,157.2,157.19,0.06]
[1752126383067,35.39445802,157.2,157.19,0.06]
[1752126395505,6.36213258,157.18,157.16,0.06]
[1752126395708,22.51295007,157.17,157.16,0.06]
[1752126395865,29.00313487,157.17,157.16,0.06]
[1752126397605,35.36567224,157.17,157.16,0.06]
[1752126404612,35.86567224,157.17,157.16,0.06]
[1752126406414,182.26567224,157.17,157.16,0.06]
[1752126415525,214.24567224,157.17,157.16,0.06]
[1752126416637,210.5245326,157.17,157.16,0.06]
[1752126416936,172.03983366,157.17,157.16,0.06]
[1752126417369,171.68199523,157.17,157.16,0.06]
[1752126417543,6.4901848,157.17,157.16,0.06]
[1752126417716,18.64964886,157.18,157.16,0.06]
[1752126417917,6.78998552,157.17,157.16,0.06]
[1752126420219,25.01188285,157.18,157.16,0.06]
[1752126420651,28.73302249,157.18,157.16,0.06]
[1752126420820,25.01188285,157.18,157.16,0.06]
[1752126421025,28.73302249,157.18,157.16,0.06]
[1752126421528,25.01188285,157.18,157.16,0.06]
[1752126421728,28.73302249,157.18,157.16,0.06]
[1752126423242,25.1543478,157.17,157.16,0.06]
[1752126423639,35.67852149,157.17,157.16,0.06]
[1752126426353,35.69719247,157.17,157.16,0.06]
[1752126427152,31.97605283,157.17,157.16,0.06]
[1752126429553,31.96735576,157.17,157.16,0.06]
[1752126429859,25.1543478,157.17,157.16,0.06]
[1752126431157,25.60568511,157.17,157.16,0.06]
[1752126431356,25.60651072,157.17,157.16,0.06]
[1752126431730,6.81470029,157.17,157.16,0.06]
[1752126431951,6.36221725,157.18,157.16,0.06]
[1752126431952,13.17691754,157.18,157.16,0.06]
[1752126433231,6.81470029,157.17,157.16,0.06]
[1752126433755,6.81470029,157.17,157.16,3.78113964]
[1752126433936,0.03,157.19,157.16,3.78113964]
[1752126434141,6.84857372,157.19,157.18,3.72113964]
[1752126434345,0.03,157.19,157.18,3.72113964]
[1752126435834,0.03,157.19,157.18,10.08327222]
[1752126436048,0.03,157.19,157.18,16.29967222]
[1752126444261,0.03,157.19,157.18,12.57853258]
[1752126444464,0.03,157.19,157.18,16.29967222]
[1752126446841,0.03,157.19,157.18,12.57853258]
[1752126447041,0.03,157.19,157.18,16.29967222]
[1752126447265,0.03,157.19,157.18,16.35967222]
[1752126456261,0.03,157.19,157.18,18.02397222]
[1752126456661,0.03,157.2,157.18,32.90853078]
[1752126456871,0.03,157.2,157.19,50.5856982]
[1752126457558,0.03,157.2,157.19,56.94742604]
[1752126458972,0.03,157.27,157.22,26.0]
[1752126459274,0.03,157.27,157.26,3.72113964]
[1752126459581,0.03,157.27,157.26,35.72113964]
[1752126464380,0.03,157.27,157.26,32.0]
[1752126464584,0.03,157.27,157.26,35.72113964]
[1752126480992,0.03,157.27,157.22,33.7845]
[1752126481173,0.03,157.27,157.26,3.72113964]
[1752126481375,0.03,157.27,157.26,35.72113964]
[1752126482877,0.03,157.27,157.26,32.0]
[1752126483088,0.03,157.27,157.26,35.72113964]
[1752126495791,0.03,157.27,157.26,42.08003573]
[1752126495991,0.03,157.27,157.26,35.72113964]
[1752126509112,0.03,157.27,157.26,32.0]
[1752126509318,0.03,157.27,157.26,35.72113964]
[1752126509498,0.03,157.27,157.26,32.0]
[1752126510916,6.38849176,157.27,157.24,3.72113964]
[1752126511121,13.33509035,157.27,157.25,32.0]
[1752126512022,6.38849176,157.27,157.25,32.0]
[1752126513022,6.38849176,157.27,157.24,35.72113964]
[1752126514321,6.38849176,157.27,157.24,3.72113964]
[1752126514524,6.38849176,157.27,157.24,35.72113964]
[1752126515100,6.38849176,157.27,157.24,32.0]
[1752126515301,6.38849176,157.27,157.24,35.72113964]
[1752126517001,6.38849176,157.27,157.24,32.0]
[1752126517224,6.38849176,157.27,157.24,35.72113964]
[1752126518118,6.38849176,157.27,157.24,32.0]
[1752126518310,6.38849176,157.27,157.25,3.72113964]
[1752126519324,13.30877707,157.27,157.25,3.72113964]
[1752126519517,6.38849176,157.27,157.25,3.72113964]
[1752126519718,13.30836528,157.27,157.25,3.72113964]
[1752126523821,6.38849176,157.27,157.24,32.0]
[1752126524015,6.38849176,157.27,157.25,3.72113964]
[1752126524210,6.38849176,157.27,157.26,3.72113964]
[1752126524422,0.03,157.27,157.26,3.72113964]
[1752126524821,0.03,157.27,157.26,35.72113964]
[1752126533435,0.03,157.27,157.25,3.72113964]
[1752126533616,0.03,157.27,157.26,31.98]
[1752126533816,0.03,157.27,157.24,29.72113964]
[1752126534020,0.03,157.27,157.25,31.98]
[1752126534432,3.75113964,157.27,157.25,31.98]
[1752126535538,6.35889609,157.26,157.25,31.98]
[1752126535740,6.35889609,157.26,157.24,57.98]
[1752126536645,0.03,157.27,157.24,61.70113964]
[1752126537461,0.14216157,157.26,157.23,3.72113964]
[1752126537646,0.14216157,157.26,157.23,35.70113964]
[1752126538231,0.14216157,157.26,157.23,3.72113964]
[1752126538430,0.14216157,157.26,157.23,35.70113964]
[1752126538742,6.35930047,157.25,157.23,35.70113964]
[1752126540351,6.35930047,157.25,157.24,3.72113964]
[1752126540954,6.35930047,157.25,157.23,31.98]
[1752126540955,6.35930047,157.25,157.23,35.70113964]
[1752126544740,13.45665572,157.26,157.23,35.70113964]
[1752126549576,13.45665572,157.26,157.24,3.72113964]
[1752126549577,6.9554681,157.26,157.24,3.72113964]
[1752126549742,0.03,157.27,157.25,3.72113964]
[1752126550066,0.03,157.27,157.26,3.72113964]
[1752126550239,6.95503594,157.27,157.26,3.72113964]
[1752126550434,0.03,157.27,157.26,3.72113964]
[1752126550756,6.95503594,157.27,157.26,3.72113964]
[1752126551056,0.03,157.27,157.26,3.72113964]
[1752126551241,6.95503594,157.27,157.26,3.72113964]
[1752126551441,6.95503594,157.27,157.25,31.98]
[1752126551746,0.03,157.27,157.25,35.70113964]
[1752126552354,6.95864168,157.27,157.25,35.70113964]
[1752126553452,10.67978132,157.27,157.23,3.72113964]
[1752126553653,6.93093353,157.26,157.23,35.74113964]
[1752126554353,3.75113964,157.27,157.23,35.74113964]
[1752126554566,13.30710522,157.26,157.23,35.74113964]
[1752126554747,6.35890145,157.26,157.23,35.74113964]
[1752126556148,6.5308319,157.27,157.24,3.72113964]
[1752126556349,6.94825452,157.26,157.24,3.72113964]
[1752126556550,6.5308319,157.27,157.24,3.72113964]
[1752126556749,6.94825525,157.26,157.24,3.72113964]
[1752126557151,0.03,157.27,157.25,32.0]
[1752126557353,0.03,157.27,157.26,3.72113964]
[1752126569173,0.03,157.27,157.25,32.22]
[1752126569874,0.03,157.27,157.24,29.72113964]
[1752126570058,0.03,157.27,157.24,61.96113964]
[1752126571175,0.03,157.27,157.25,3.72113964]
[1752126573156,6.38849176,157.27,157.25,3.72113964]
[1752126576384,13.37945779,157.27,157.25,3.72113964]
[1752126577466,13.37945779,157.27,157.24,58.24]
[1752126577676,13.37945779,157.27,157.24,61.96113964]
[1752126579195,13.37945779,157.27,157.24,58.24]
[1752126579378,13.37945779,157.27,157.24,61.96113964]
[1752126579994,13.37945779,157.27,157.24,29.72113964]
[1752126580191,13.37945779,157.27,157.24,35.92113964]
[1752126584192,13.37945779,157.27,157.24,32.2]
[1752126584498,13.37945779,157.27,157.24,35.92113964]
[1752126585196,6.38849176,157.27,157.24,35.92113964]
[1752126587906,13.26153709,157.27,157.24,35.92113964]
[1752126588304,13.26153709,157.27,157.24,3.72113964]
[1752126588506,13.26153709,157.27,157.24,35.92113964]
[1752126593302,13.26153709,157.27,157.24,3.72113964]
[1752126593491,13.26153709,157.27,157.24,35.90113964]
[1752126594204,13.26153709,157.27,157.26,3.72113964]
[1752126594382,6.90304533,157.27,157.26,3.72113964]
[1752126594587,6.90304533,157.27,157.26,35.90113964]
[1752126594784,0.03,157.27,157.26,35.90113964]
[1752126595685,0.03,157.27,157.26,32.18]
[1752126595886,0.03,157.27,157.26,35.90113964]
[1752126602309,0.03,157.27,157.26,42.26003573]
[1752126603809,0.03,157.27,157.26,68.26003573]
[1752126612016,0.03,157.27,157.26,58.14]
[1752126612210,0.03,157.27,157.26,61.86113964]
[1752126613317,6.0,157.29,157.28,26.0]
[1752126613517,6.0,157.29,157.28,61.86113964]
[1752126614219,6.0,157.29,157.28,68.21922712]
[1752126614420,6.0,157.29,157.28,76.7456982]
[1752126614623,6.0,157.29,157.28,61.86113964]
[1752126618433,6.0,157.29,157.28,58.14]
[1752126618621,6.0,157.29,157.28,61.86113964]
[1752126619532,6.03,157.29,157.28,61.86113964]
[1752126624934,12.38768326,157.29,157.28,61.86113964]
[1752126625132,12.38768326,157.29,157.28,3.72113964]
[1752126625332,12.38768326,157.29,157.28,35.82113964]
[1752126639082,12.38768326,157.29,157.28,35.80113964]
[1752126640073,12.38768326,157.29,157.28,3.72113964]
[1752126640255,12.38768326,157.29,157.28,35.80113964]
[1752126640661,12.38768326,157.29,157.28,3.72113964]
[1752126640864,12.38768326,157.29,157.28,35.80113964]
[1752126641278,12.38768326,157.29,157.28,35.86113964]
[1752126641484,6.03,157.29,157.28,35.86113964]
[1752126642779,6.03,157.29,157.28,42.21922712]
[1752126643084,6.03,157.29,157.28,57.10378568]
[1752126644056,6.03,157.29,157.28,32.14]
[1752126644282,6.03,157.29,157.28,35.86113964]
[1752126667195,6.03,157.29,157.28,1e-08]
[1752126667196,37.99060826,157.29,157.28,1e-08]
[1752126667413,18.79181043,157.28,157.21,35.92113964]
[1752126667572,6.95327614,157.27,157.24,26.0]
[1752126667778,12.38768326,157.29,157.26,3.72113964]
[1752126668091,12.38768326,157.29,157.27,32.14]
[1752126669504,12.38768326,157.29,157.27,35.86113964]
[1752126670718,6.03,157.29,157.28,3.72113964]
[1752126671581,13.11475858,157.29,157.28,3.72113964]
[1752126671981,6.03,157.29,157.28,3.72113964]
[1752126672176,6.03,157.29,157.27,32.14]
[1752126672383,6.03,157.29,157.28,3.72113964]
[1752126675098,0.03,157.29,157.28,3.72113964]
[1752126683021,0.03,157.29,157.27,32.14]
[1752126683319,0.03,157.29,157.28,3.72113964]
[1752126686327,0.03,157.29,157.28,0.06]
[1752126686499,10.86109433,157.29,157.28,0.06]
[1752126686696,11.0032559,157.29,157.28,0.06]
[1752126686902,29.65290476,157.29,157.28,0.06]
[1752126687201,36.01058802,157.29,157.28,0.06]
[1752126687429,37.56128802,157.29,157.28,0.06]
[1752126688937,33.84014838,157.29,157.28,0.06]
[1752126689102,37.56128802,157.29,157.28,0.06]
[1752126691738,33.84014838,157.29,157.28,0.06]
[1752126691904,37.56128802,157.29,157.28,0.06]
[1752126694916,17.36093916,157.29,157.28,0.06]
[1752126695167,13.63979952,157.29,157.28,0.06]
[1752126695431,17.36093916,157.29,157.28,0.06]
[1752126695804,13.63979952,157.29,157.28,0.06]
[1752126696104,17.36093916,157.29,157.28,0.06]
[1752126697122,36.01058802,157.29,157.28,0.06]
[1752126699926,13.49763795,157.29,157.28,0.06]
[1752126706536,7.13995469,157.29,157.28,0.06]
[1752126708034,7.13995469,157.29,157.28,3.78113964]
[1752126708223,0.03,157.29,157.28,3.78113964]
[1752126714053,0.03,157.29,157.28,25.02378568]
[1752126714344,0.03,157.29,157.28,10.13922712]
[1752126717753,0.03,157.29,157.28,25.02378568]
[1752126717928,0.03,157.29,157.28,10.13922712]
[1752126723255,7.12631301,157.35,157.31,26.0]
[1752126723456,0.03,157.35,157.34,3.72113964]
[1752126723755,0.03,157.35,157.34,36.10113964]
[1752126731160,0.03,157.35,157.34,32.38]
[1752126731333,0.03,157.35,157.34,36.10113964]
[1752126732464,0.03,157.35,157.34,32.38]
[1752126733041,0.03,157.35,157.34,36.10113964]
[1752126734339,0.03,157.35,157.34,42.45680253]
[1752126736362,0.03,157.35,157.34,68.45680253]
[1752126737741,0.03,157.35,157.34,64.73566289]
[1752126737964,0.03,157.35,157.34,68.45680253]
[1752126740189,0.03,157.35,157.34,64.73566289]
[1752126740368,0.03,157.35,157.34,68.45680253]
[1752126740970,0.1,157.36,157.34,83.34136109]
[1752126741269,0.1,157.37,157.35,18.6056982]
[1752126741468,0.1,157.37,157.36,78.6089982]
[1752126741767,0.1,157.37,157.36,84.9638533]
[1752126742951,0.1,157.37,157.36,85.0038533]
[1752126747164,0.03,157.42,157.39,26.0]
[1752126747369,0.03,157.42,157.41,3.72113964]
[1752126748469,0.03,157.42,157.41,10.07397618]
[1752126748844,0.03,157.42,157.41,12.16376075]
[1752126757458,0.03,157.42,157.41,30.81340961]
[1752126760682,0.03,157.42,157.41,12.16376075]
[1752126761387,0.03,157.42,157.41,100.86376075]
[1752126763581,0.03,157.42,157.41,133.36376075]
[1752126764385,0.03,157.42,157.41,127.55283654]
[1752126764571,0.03,157.42,157.41,133.36376075]
[1752126767272,0.03,157.42,157.41,44.66376075]
[1752126767588,0.03,157.42,157.41,31.81092421]
[1752126767769,0.03,157.42,157.41,64.29092421]
[1752126768789,0.03,157.42,157.41,31.81092421]
[1752126768971,0.03,157.42,157.41,26.0]
[1752126769170,0.03,157.42,157.41,31.81092421]
[1752126769482,0.03,157.42,157.41,32.46]
[1752126770288,0.03,157.42,157.41,38.27092421]
[1752126771674,0.03,157.42,157.41,38.31092421]
[1752126771870,0.03,157.42,157.41,32.5]
[1752126773996,0.03,157.42,157.41,38.31092421]
[1752126778092,0.03,157.42,157.41,32.5]
[1752126778297,0.03,157.42,157.41,38.31092421]
[1752126781701,0.03,157.42,157.41,44.66376075]
[1752126789286,0.03,157.42,157.41,58.5]
[1752126789481,0.03,157.42,157.41,64.31092421]
[1752126796815,0.03,157.42,157.41,62.22030129]
[1752126797418,0.03,157.42,157.41,68.57313783]
[1752126800007,0.03,157.42,157.41,62.22030129]
[1752126800826,0.03,157.42,157.41,26.0]
[1752126801024,0.03,157.42,157.41,32.44]
[1752126801320,0.03,157.42,157.41,36.16030129]
[1752126804512,0.03,157.42,157.41,42.51313783]
[1752126806530,0.03,157.42,157.41,32.44]
[1752126806738,0.03,157.42,157.41,36.16030129]
[1752126807108,0.03,157.42,157.41,58.44]
[1752126807411,3.75030129,157.42,157.37,0.06]
[1752126807610,3.75030129,157.42,157.38,62.18030129]
[1752126808023,0.03,157.42,157.38,26.0]
[1752126808223,13.47819603,157.41,157.38,26.0]
[1752126808425,6.35317162,157.41,157.39,32.46]
[1752126808633,10.10288011,157.42,157.4,32.46]
[1752126808944,7.12289771,157.41,157.4,32.46]
[1752126809524,13.47573425,157.41,157.4,32.46]
[1752126811532,6.35283654,157.41,157.4,32.46]
[1752126813816,6.35283654,157.41,157.38,3.72030129]
[1752126814017,6.35283654,157.41,157.39,32.46]
[1752126814437,6.35283654,157.41,157.39,36.18030129]
[1752126814937,6.38258512,157.42,157.39,36.18030129]
[1752126815935,0.03,157.43,157.41,24.69820645]
[1752126816117,0.03,157.44,157.43,18.64964886]
[1752126816322,0.03,157.44,157.43,23.51384964]
[1752126816521,0.03,157.44,157.43,3.72030129]
[1752126817348,0.03,157.44,157.42,14.32452888]
[1752126817635,0.03,157.44,157.43,32.46]
[1752126818240,0.03,157.44,157.43,36.18030129]
[1752126818940,0.03,157.44,157.43,38.27235103]
[1752126829726,0.03,157.44,157.43,32.46]
[1752126830050,0.03,157.44,157.43,38.27235103]
[1752126834636,0.03,157.44,157.43,32.46]
[1752126834864,0.03,157.44,157.43,44.6243805]
[1752126837348,0.03,157.44,157.43,50.43673153]
[1752126839747,0.03,157.44,157.43,50.49673153]
[1752126840764,0.03,157.47,157.46,26.0]
[1752126840964,0.03,157.47,157.46,62.13631715]
[1752126842584,0.03,157.47,157.46,68.4871364]
[1752126843079,0.03,157.47,157.46,70.57765902]
[1752126853129,0.03,157.47,157.46,159.27765902]
[1752126864920,0.03,157.47,157.46,68.48708275]
[1752126869133,0.03,157.47,157.46,64.77081925]
[1752126869332,0.03,157.47,157.46,68.48708275]
[1752126870926,0.03,157.47,157.46,36.06708275]
[1752126871128,0.03,157.47,157.46,68.36708275]
[1752126874436,0.03,157.47,157.46,64.65081925]
[1752126874732,0.03,157.47,157.46,68.36708275]
[1752126876156,0.03,157.47,157.46,64.65081925]
[1752126876454,0.03,157.47,157.46,68.36708275]
[1752126886462,0.03,157.5,157.46,68.36708275]
[1752126886766,0.03,157.5,157.49,3.7162635]
[1752126887060,0.03,157.5,157.49,35.9962635]
[1752126893264,0.03,157.5,157.49,32.28]
[1752126893560,0.03,157.5,157.49,35.9962635]
[1752126894162,0.03,157.5,157.49,32.28]
[1752126894371,0.03,157.5,157.49,35.9962635]
[1752126899763,0.03,157.5,157.49,32.28]
[1752126899962,0.03,157.5,157.49,35.9962635]
[1752126901586,0.03,157.5,157.49,42.34587299]
[1752126904773,0.1,157.51,157.49,42.34587299]
[1752126904974,0.1,157.51,157.5,3.7162635]
[1752126905361,0.1,157.51,157.5,46.75756145]
[1752126905571,0.03,157.55,157.54,29.7162635]
[1752126905761,0.03,157.55,157.54,26.0]
[1752126905976,7.04824138,157.55,157.53,32.28]
[1752126906289,7.01824138,157.54,157.53,35.9962635]
[1752126906594,0.03,157.55,157.53,35.9962635]
[1752126906884,0.03,157.55,157.53,36.0162635]
[1752126915791,0.03,157.55,157.53,32.3]
[1752126916186,0.03,157.55,157.51,26.0]
[1752126916378,0.03,157.55,157.51,61.9762635]
[1752126918293,6.37719136,157.55,157.51,61.9762635]
[1752126921998,6.37719136,157.55,157.52,3.7162635]
[1752126923000,6.37719136,157.55,157.51,61.9762635]
[1752126923196,6.37719136,157.55,157.52,3.7162635]
[1752126924198,0.03,157.55,157.54,3.7162635]
[1752126933015,0.03,157.55,157.54,10.06385776]
[1752126942410,0.03,157.55,157.54,36.06385776]
[1752126950905,0.03,157.55,157.54,68.28385776]
[1752126953216,0.03,157.55,157.54,26.0]
[1752126953400,0.03,157.55,157.54,61.9562635]
[1752126953810,0.03,157.55,157.54,61.9362635]
[1752126954714,0.03,157.55,157.5,0.06]
[1752126954715,3.7462635,157.55,157.5,0.06]
[1752126954913,3.7462635,157.55,157.5,3.7762635]
[1752126955119,3.7462635,157.55,157.51,58.22]
[1752126955420,3.7462635,157.55,157.52,32.22]
[1752126955718,10.06385776,157.54,157.5,0.06]
[1752126955917,6.34759426,157.54,157.53,26.0]
[1752126956124,10.06385776,157.54,157.53,26.0]
[1752126957125,6.34759426,157.54,157.53,26.0]
[1752126957623,6.37722718,157.55,157.52,3.7162635]
[1752126958822,0.03,157.55,157.52,3.7162635]
[1752126960722,0.03,157.55,157.54,3.7162635]
[1752126965228,0.03,157.55,157.53,35.9362635]
[1752126966228,0.03,157.55,157.54,3.7162635]
[1752126972118,0.03,157.55,157.53,32.22]
[1752126972419,0.03,157.55,157.54,3.7162635]
[1752126973816,0.03,157.55,157.53,35.9362635]
[1752126979610,0.03,157.55,157.54,3.7162635]
[1752126983132,0.03,157.55,157.53,35.9362635]
[1752126990741,0.03,157.55,157.54,3.7162635]
[1752126991416,0.03,157.55,157.53,42.28423531]
[1752126991738,0.03,157.55,157.53,35.9362635]
[1752126993557,0.03,157.55,157.54,3.7162635]
[1752126994348,0.03,157.55,157.54,26.0]
[1752126994638,10.77651459,157.55,157.5,0.06]
[1752126994840,3.7162635,157.54,157.53,26.0]
[1752126995044,3.7162635,157.54,157.52,32.18]
[1752126995620,6.34790109,157.54,157.52,32.18]
[1752126995826,10.06416459,157.54,157.52,32.18]
[1752126996135,10.06416459,157.54,157.51,26.0]
[1752126996440,6.34790109,157.54,157.51,58.18]
[1752126996737,10.06416459,157.54,157.51,58.18]
[1752126997239,6.34790109,157.54,157.52,26.0]
[1752126997439,6.34790109,157.54,157.53,26.0]
[1752126997842,10.09360907,157.55,157.53,26.0]
[1752127000443,0.03,157.55,157.53,26.0]
[1752127001034,3.7462635,157.55,157.53,26.0]
[1752127002251,0.03,157.55,157.53,26.0]
[1752127005645,0.03,157.55,157.5,0.06]